bitfinex/quotes_SOLUSD_20250805
["timestamp","ask_amount","ask_price","bid_price","bid_amount"]
[1754434102330,6.10772892,163.73,163.69,0.77]
[1754434102512,48.8973145,163.74,163.69,6.87906461]
[1754434102692,74.8973145,163.74,163.7,0.71]
[1754434103026,26.03,163.74,163.7,0.71]
[1754434103389,0.03,163.74,163.7,7.43445928]
[1754434103588,0.03,163.74,163.71,7.43445928]
[1754434104100,0.03,163.74,163.72,0.71]
[1754434106437,0.03,163.74,163.72,7.43445928]
[1754434106615,0.03,163.74,163.72,0.71]
[1754434106808,0.03,163.74,163.71,6.72445928]
[1754434107031,0.03,163.74,163.73,0.71]
[1754434112446,0.03,163.74,163.73,35.14207547]
[1754434114234,0.03,163.74,163.73,22.31]
[1754434114537,0.03,163.74,163.73,21.6]
[1754434114855,0.03,163.74,163.71,0.71]
[1754434115952,26.03,163.74,163.71,0.71]
[1754434116115,26.03,163.74,163.69,12.89348368]
[1754434116314,0.03,163.74,163.73,6.72445928]
[1754434116516,0.03,163.74,163.73,7.43445928]
[1754434116945,0.03,163.74,163.73,0.71]
[1754434118353,0.03,163.74,163.72,42.72]
[1754434118653,0.03,163.74,163.72,43.43]
[1754434119373,0.03,163.74,163.71,6.10814363]
[1754434119676,0.03,163.74,163.72,0.71]
[1754434122489,0.03,163.74,163.73,0.71]
[1754434123060,0.03,163.74,163.7,12.83319477]
[1754434123276,0.03,163.74,163.71,0.71]
[1754434123753,0.03,163.74,163.72,0.71]
[1754434124537,0.4,163.74,163.69,43.53]
[1754434124932,0.4,163.74,163.7,0.71]
[1754434125655,6.50744135,163.74,163.7,0.71]
[1754434126146,6.13744135,163.74,163.7,0.71]
[1754434126347,6.13744135,163.74,163.71,0.71]
[1754434127269,26.0,163.72,163.69,42.82]
[1754434127572,26.37,163.72,163.69,0.06]
[1754434127867,32.47832148,163.72,163.69,0.06]
[1754434128571,32.10832148,163.72,163.69,0.06]
[1754434129856,32.10832148,163.72,163.69,0.77]
[1754434131247,32.10832148,163.72,163.69,0.06]
[1754434131454,32.47832148,163.72,163.69,0.06]
[1754434131864,32.10832148,163.72,163.69,0.77]
[1754434132170,32.47832148,163.72,163.69,0.06]
[1754434132349,32.10832148,163.72,163.69,0.06]
[1754434132554,32.10832148,163.72,163.69,0.77]
[1754434132950,32.47832148,163.72,163.69,0.06]
[1754434135789,0.37,163.71,163.69,0.06]
[1754434135954,0.37,163.7,163.69,0.06]
[1754434136285,0.37,163.71,163.69,0.06]
[1754434137768,6.10873549,163.7,163.69,0.06]
[1754434137972,6.47873549,163.7,163.69,0.06]
[1754434138372,21.72711263,163.7,163.69,0.06]
[1754434140886,26.20209519,163.7,163.69,0.06]
[1754434141082,26.57209519,163.7,163.69,0.06]
[1754434141261,41.24837714,163.68,163.67,0.06]
[1754434141686,41.61837714,163.68,163.67,0.06]
[1754434142227,41.61837714,163.68,163.62,0.71]
[1754434142228,26.0,163.65,163.63,0.71]
[1754434142370,26.0,163.64,163.63,0.71]
[1754434142766,6.11134877,163.63,163.61,0.71]
[1754434142972,6.11134877,163.63,163.6,0.71]
[1754434143479,6.11134877,163.63,163.61,0.71]
[1754434144694,26.0,163.63,163.61,0.71]
[1754434145502,26.0,163.63,163.62,0.67]
[1754434149184,26.0,163.63,163.59,6.17273299]
[1754434149408,26.0,163.63,163.59,0.06]
[1754434149409,32.11145461,163.63,163.59,0.06]
[1754434149600,32.48145461,163.63,163.59,0.06]
[1754434149793,0.37,163.62,163.59,0.06]
[1754434150493,0.37,163.61,163.59,0.06]
[1754434150994,6.11246943,163.6,163.59,0.06]
[1754434151206,6.254631,163.6,163.59,0.06]
[1754434151815,6.624631,163.6,163.59,0.06]
[1754434152015,75.484631,163.6,163.59,0.06]
[1754434152602,74.97246943,163.6,163.59,0.06]
[1754434155529,26.0,163.61,163.59,0.73]
[1754434155839,26.0,163.61,163.6,0.67]
[1754434156126,69.23,163.61,163.59,0.06]
[1754434156297,0.51216157,163.6,163.59,0.06]
[1754434156500,0.14216157,163.6,163.59,0.06]
[1754434157938,6.254631,163.6,163.59,0.06]
[1754434160213,6.254631,163.6,163.59,0.73]
[1754434160424,6.254631,163.6,163.59,0.06]
[1754434162003,68.86,163.61,163.59,0.73]
[1754434162004,74.97220535,163.61,163.59,0.73]
[1754434162217,74.97220535,163.61,163.59,0.06]
[1754434162700,75.11436692,163.61,163.59,0.06]
[1754434163207,75.48436692,163.61,163.59,0.06]
[1754434163750,0.14216157,163.6,163.59,0.06]
[1754434163940,15.61837714,163.6,163.59,0.06]
[1754434164423,21.73084657,163.6,163.59,0.06]
[1754434164623,0.14216157,163.58,163.57,0.06]
[1754434164837,58.47837714,163.58,163.57,0.06]
[1754434167565,64.22159391,163.58,163.57,0.06]
[1754434167853,74.97321677,163.58,163.57,0.73]
[1754434168527,74.97321677,163.58,163.57,0.06]
[1754434170257,68.86,163.58,163.57,0.06]
[1754434170430,26.0,163.58,163.57,0.73]
[1754434171235,48.99248353,163.6,163.57,0.73]
[1754434171450,42.88,163.6,163.57,0.73]
[1754434171662,26.0,163.58,163.57,0.73]
[1754434171831,75.13440107,163.61,163.57,0.73]
[1754434172158,0.14216157,163.64,163.57,0.73]
[1754434172352,74.99134877,163.63,163.57,0.73]
[1754434172529,74.99134877,163.63,163.57,6.84354074]
[1754434172855,74.99134877,163.63,163.58,0.67]
[1754434173264,0.4,163.68,163.58,7.39445928]
[1754434173435,15.10621557,163.66,163.59,7.39445928]
[1754434173628,0.14216157,163.65,163.6,0.65]
[1754434174854,26.0,163.66,163.6,0.65]
[1754434175857,32.11030239,163.66,163.6,6.76236586]
[1754434176040,32.11030239,163.66,163.61,0.65]
[1754434176538,26.0,163.66,163.61,6.76209274]
[1754434176743,26.0,163.66,163.62,7.37445928]
[1754434176943,26.0,163.66,163.63,0.65]
[1754434177649,0.03,163.68,163.63,7.37445928]
[1754434177849,0.03,163.68,163.64,0.65]
[1754434178861,0.03,163.68,163.64,6.76093066]
[1754434179176,0.03,163.68,163.64,13.48538994]
[1754434179353,0.03,163.68,163.65,0.65]
[1754434180958,0.03,163.68,163.66,0.65]
[1754434182167,6.75461953,163.68,163.66,0.65]
[1754434182477,0.03,163.68,163.66,0.65]
[1754434182843,0.03,163.68,163.64,19.5599631]
[1754434183045,0.03,163.68,163.66,0.65]
[1754434183370,6.72461953,163.67,163.66,0.65]
[1754434183542,6.75461953,163.68,163.66,0.65]
[1754434183742,6.75461953,163.68,163.67,0.65]
[1754434185271,12.86418488,163.68,163.64,0.65]
[1754434185462,32.72461953,163.65,163.62,0.65]
[1754434185767,6.72461953,163.64,163.63,0.65]
[1754434187193,26.0,163.65,163.63,0.65]
[1754434187357,6.72461953,163.66,163.63,0.65]
[1754434187552,6.72461953,163.65,163.63,0.65]
[1754434188056,6.72461953,163.65,163.64,0.65]
[1754434188468,6.72461953,163.65,163.62,0.65]
[1754434188773,6.72461953,163.65,163.63,0.65]
[1754434188974,6.11050167,163.66,163.63,0.65]
[1754434189177,6.72461953,163.65,163.64,0.65]
[1754434189673,6.72461953,163.66,163.64,0.65]
[1754434189889,6.72461953,163.66,163.65,0.65]
[1754434190679,6.72461953,163.66,163.63,0.65]
[1754434190852,6.72461953,163.65,163.61,6.76201062]
[1754434191177,6.72461953,163.64,163.61,0.65]
[1754434191378,6.72461953,163.63,163.61,0.65]
[1754434191767,6.72461953,163.64,163.6,27.71233688]
[1754434191973,6.72461953,163.64,163.62,0.65]
[1754434192675,26.0,163.64,163.63,0.65]
[1754434192874,32.72461953,163.64,163.63,0.65]
[1754434193172,6.11029699,163.66,163.63,0.65]
[1754434193364,12.83491652,163.66,163.63,0.65]
[1754434193564,6.72461953,163.66,163.64,0.65]
[1754434193775,6.72461953,163.66,163.65,0.65]
[1754434194966,12.8348538,163.66,163.63,0.65]
[1754434195181,6.72461953,163.65,163.63,0.65]
[1754434196497,6.72461953,163.65,163.64,0.65]
[1754434196694,6.72461953,163.66,163.64,0.65]
[1754434197630,6.72461953,163.65,163.64,0.65]
[1754434198111,6.72461953,163.65,163.61,6.1119311]
[1754434198271,6.72461953,163.65,163.62,0.65]
[1754434198687,6.72461953,163.64,163.62,0.65]
[1754434200418,6.75461953,163.65,163.63,0.65]
[1754434201902,12.86522743,163.65,163.63,0.65]
[1754434202802,12.86522743,163.65,163.62,0.65]
[1754434203006,6.72461953,163.63,163.6,21.6]
[1754434203309,6.72461953,163.62,163.6,21.6]
[1754434203805,6.72461953,163.63,163.61,0.72]
[1754434204021,6.72461953,163.63,163.62,0.72]
[1754434204222,6.75461953,163.65,163.62,0.72]
[1754434204424,0.03,163.65,163.62,0.72]
[1754434205030,0.03,163.65,163.62,6.83164813]
[1754434205246,0.03,163.65,163.63,0.72]
[1754434205843,0.03,163.65,163.64,0.72]
[1754434211824,0.03,163.65,163.64,6.83097531]
[1754434212146,0.03,163.65,163.64,6.11097531]
[1754434212335,0.03,163.65,163.64,6.83097531]
[1754434212668,0.03,163.65,163.64,13.55559484]
[1754434221775,0.03,163.65,163.64,35.15559484]
[1754434223576,0.03,163.67,163.64,13.55559484]
[1754434223748,0.03,163.67,163.66,6.72461953]
[1754434224288,0.03,163.67,163.66,7.44461953]
[1754434224575,0.03,163.67,163.66,6.11022852]
[1754434229163,0.03,163.67,163.66,6.83022852]
[1754434233287,0.03,163.67,163.66,13.55484805]
[1754434233472,0.03,163.67,163.66,35.15484805]
[1754434234159,0.03,163.67,163.66,13.55484805]
[1754434235593,0.03,163.67,163.66,50.26106362]
[1754434236588,0.03,163.67,163.66,52.70717262]
[1754434237386,0.03,163.68,163.67,15.10621557]
[1754434237592,0.03,163.68,163.67,65.2408351]
[1754434239598,0.03,163.68,163.67,56.24447472]
[1754434239976,0.03,163.68,163.67,71.35069029]
[1754434241773,0.03,163.68,163.67,71.49285186]
[1754434242080,0.03,163.68,163.67,93.09285186]
[1754434243274,1e-08,163.7,163.68,15.24837714]
[1754434243589,1e-08,163.7,163.69,64.71299667]
[1754434243787,1e-08,163.7,163.69,71.47210535]
[1754434244393,1e-08,163.7,163.69,79.37944435]
[1754434244693,1e-08,163.7,163.69,94.25482482]
[1754434244897,1e-08,163.7,163.69,100.97944435]
[1754434245095,1e-08,163.7,163.69,58.23944435]
[1754434245300,1e-08,163.7,163.69,77.17372821]
[1754434246175,1e-08,163.7,163.69,77.82372821]
[1754434248173,1e-08,163.7,163.69,56.22372821]
[1754434248505,1e-08,163.7,163.69,55.57372821]
[1754434249313,1e-08,163.7,163.69,71.47210535]
[1754434249805,1e-08,163.7,163.69,78.22672535]
[1754434253081,1e-08,163.7,163.69,78.08456378]
[1754434253283,1e-08,163.7,163.69,71.32994378]
[1754434254120,1e-08,163.7,163.69,93.07210535]
[1754434256899,1e-08,163.7,163.69,95.51746735]
[1754434259210,1e-08,163.7,163.69,102.24208688]
[1754434259912,0.03,163.74,163.73,15.10621557]
[1754434260085,0.03,163.74,163.73,86.1708351]
[1754434260285,0.03,163.74,163.73,86.8208351]
[1754434261107,0.03,163.74,163.73,92.27845129]
[1754434261724,0.03,163.74,163.73,85.55383176]
[1754434262020,0.03,163.74,163.73,92.27845129]
[1754434263222,0.03,163.74,163.73,85.55383176]
[1754434263522,0.03,163.74,163.73,92.27845129]
[1754434263893,0.03,163.74,163.73,85.55383176]
[1754434264095,0.03,163.74,163.73,92.27845129]
[1754434264706,0.03,163.74,163.73,92.94845129]
[1754434265597,0.03,163.74,163.73,85.55383176]
[1754434265798,0.03,163.74,163.73,92.27845129]
[1754434268404,0.03,163.74,163.73,92.94845129]
[1754434269127,0.03,163.74,163.73,77.21223572]
[1754434271037,0.03,163.74,163.73,77.88223572]
[1754434272423,0.03,163.74,163.73,92.98845129]
[1754434273516,0.03,163.74,163.73,85.59383176]
[1754434273845,0.03,163.74,163.73,92.31845129]
[1754434275521,0.03,163.74,163.73,92.98845129]
[1754434279151,0.03,163.74,163.73,86.26383176]
[1754434279350,0.03,163.74,163.73,92.98845129]
[1754434283936,0.03,163.74,163.73,93.13061286]
[1754434288648,0.03,163.74,163.73,90.70304566]
[1754434290342,0.03,163.74,163.73,69.10304566]
[1754434290867,0.7827195,163.78,163.74,0.14216157]
[1754434291040,0.7827195,163.78,163.76,4.29705233]
[1754434291239,0.7827195,163.78,163.77,42.7]
[1754434291949,0.7827195,163.78,163.77,46.997053]
[1754434292665,0.7827195,163.78,163.77,53.10317744]
[1754434294345,0.7827195,163.78,163.77,57.40022977]
[1754434295363,1.1827195,163.78,163.77,10.40317744]
[1754434295566,1.1827195,163.78,163.77,53.10317744]
[1754434295745,0.7827195,163.78,163.77,53.10317744]
[1754434297065,0.7827195,163.78,163.77,57.40022977]
[1754434297365,0.7827195,163.78,163.77,58.08022977]
[1754434298066,0.7827195,163.78,163.77,73.18644534]
[1754434298648,0.7827195,163.78,163.77,94.78644534]
[1754434302566,0.7827195,163.78,163.77,90.48939301]
[1754434302772,0.7827195,163.78,163.77,94.78644534]
[1754434303068,0.7827195,163.78,163.77,68.88939301]
[1754434303242,0.7827195,163.78,163.77,73.18644534]
[1754434308456,0.1,163.82,163.78,15.10621557]
[1754434308659,0.1,163.82,163.81,4.29705233]
[1754434308853,0.1,163.82,163.81,46.99705233]
[1754434309072,0.1,163.82,163.81,49.44121833]
[1754434309262,0.1,163.82,163.81,51.24879941]
[1754434310881,0.1,163.82,163.81,55.54585174]
[1754434311053,0.1,163.82,163.81,56.22585174]
[1754434312263,0.1,163.82,163.81,51.24879941]
[1754434312473,0.1,163.82,163.81,55.54585174]
[1754434313884,0.1,163.82,163.81,51.24879941]
[1754434314186,0.1,163.82,163.81,55.54585174]
[1754434320592,0.1,163.82,163.81,56.22585174]
[1754434321094,1e-08,163.82,163.81,71.47422888]
[1754434325199,1e-08,163.82,163.81,93.07422888]
[1754434331801,1e-08,163.82,163.81,50.23206731]
[1754434332011,1e-08,163.82,163.81,92.23206731]
[1754434332995,1e-08,163.82,163.81,34.44585174]
[1754434333176,1e-08,163.82,163.81,77.12585174]
[1754434333511,0.40000001,163.82,163.81,24.044166]
[1754434333690,0.40000001,163.82,163.81,66.724166]
[1754434334023,0.40000001,163.82,163.79,6.16522809]
[1754434334179,0.40000001,163.82,163.8,42.68]
[1754434334380,0.40000001,163.82,163.8,47.077052]
[1754434334891,1e-08,163.82,163.8,53.18204]
[1754434335097,0.4,163.81,163.8,53.18204]
[1754434335414,1e-08,163.82,163.8,73.2753079]
[1754434335583,1e-08,163.82,163.81,20.0932679]
[1754434336080,1e-08,163.82,163.81,20.23542947]
[1754434336704,1e-08,163.82,163.81,22.64425688]
[1754434337180,1e-08,163.82,163.81,28.74889029]
[1754434337815,1e-08,163.82,163.81,71.42889029]
[1754434338506,1e-08,163.82,163.81,70.73889029]
[1754434339001,1e-08,163.82,163.81,71.42889029]
[1754434339812,1e-08,163.82,163.81,48.78463341]
[1754434340005,1e-08,163.82,163.81,55.49051315]
[1754434340985,1e-08,163.82,163.81,56.18051315]
[1754434342429,1e-08,163.82,163.81,71.42889029]
[1754434343691,1e-08,163.82,163.81,64.72301055]
[1754434343892,1e-08,163.82,163.81,70.59672872]
[1754434344515,1e-08,163.82,163.81,71.28672872]
[1754434345805,1e-08,163.82,163.81,71.42889029]
[1754434346107,1e-08,163.82,163.81,93.02889029]
[1754434346318,1e-08,163.82,163.81,95.47260929]
[1754434348027,1e-08,163.82,163.81,88.76672955]
[1754434348311,1e-08,163.82,163.81,95.47260929]
[1754434350518,1e-08,163.82,163.81,88.76672955]
[1754434350718,1e-08,163.82,163.81,95.47260929]
[1754434351336,1e-08,163.82,163.81,52.79260929]
[1754434351514,1e-08,163.82,163.81,94.64044772]
[1754434351721,1e-08,163.82,163.81,92.19672872]
[1754434352620,1e-08,163.82,163.81,92.88672872]
[1754434352819,1e-08,163.82,163.81,50.20672872]
[1754434353035,1e-08,163.82,163.81,92.88672872]
[1754434354350,1e-08,163.82,163.81,92.94672872]
[1754434354644,1e-08,163.82,163.81,95.39059572]
[1754434356320,1e-08,163.82,163.81,95.53275729]
[1754434356715,1e-08,163.82,163.81,93.11974932]
[1754434359221,1e-08,163.82,163.81,30.20850041]
[1754434359454,1e-08,163.82,163.81,70.44463341]
[1754434359939,1e-08,163.82,163.81,74.73750518]
[1754434361619,1e-08,163.82,163.81,53.82750518]
[1754434362630,1e-08,163.82,163.81,56.24306949]
[1754434364838,1e-08,163.82,163.81,55.55306949]
[1754434366443,1e-08,163.82,163.81,56.24306949]
[1754434367850,1e-08,163.82,163.81,55.55306949]
[1754434368442,1e-08,163.82,163.81,56.24306949]
[1754434372457,1e-08,163.82,163.81,48.84463341]
[1754434374545,1e-08,163.82,163.81,55.55306949]
[1754434375041,1e-08,163.82,163.81,48.84463341]
[1754434375456,1e-08,163.82,163.81,55.55306949]
[1754434377039,0.40000001,163.82,163.81,48.84463341]
[1754434377940,1e-08,163.82,163.81,55.55306949]
[1754434381374,1e-08,163.82,163.81,48.84463341]
[1754434381672,1e-08,163.82,163.81,55.55306949]
[1754434382778,1e-08,163.82,163.81,53.13907299]
[1754434383272,1e-08,163.82,163.81,48.84463341]
[1754434383478,0.40000001,163.82,163.81,48.84463341]
[1754434383877,0.40000001,163.82,163.81,42.74]
[1754434384657,4.69443959,163.82,163.81,42.74]
[1754434385759,0.40000001,163.82,163.81,42.74]
[1754434386350,0.40000001,163.82,163.81,0.06]
[1754434388484,1e-08,163.82,163.81,0.06]
[1754434392376,0.40000001,163.82,163.81,0.06]
[1754434393770,1e-08,163.82,163.81,0.06]
[1754434401203,1e-08,163.82,163.81,0.76]
[1754434401386,1e-08,163.82,163.81,0.06]
[1754434403902,4.69443959,163.82,163.81,0.06]
[1754434404973,36.79870036,163.82,163.81,0.06]
[1754434405183,40.90611397,163.82,163.81,0.06]
[1754434405878,41.04827554,163.82,163.81,0.06]
[1754434406081,83.70827554,163.82,163.81,0.06]
[1754434408608,83.16611397,163.82,163.81,0.06]
[1754434408786,40.50611397,163.82,163.81,0.06]
[1754434408981,30.10741362,163.82,163.81,0.76]
[1754434409282,1e-08,163.82,163.81,0.76]
[1754434414219,1e-08,163.82,163.81,0.06]
[1754434414416,6.71230017,163.82,163.81,0.06]
[1754434414714,16.92536175,163.82,163.81,0.06]
[1754434415097,43.32536175,163.82,163.81,0.06]
[1754434416018,42.92536175,163.82,163.81,0.06]
[1754434418601,4.10880082,163.82,163.81,0.74]
[1754434418920,1e-08,163.82,163.81,0.74]
[1754434419220,1e-08,163.82,163.81,7.45230016]
[1754434419931,1e-08,163.82,163.81,0.74]
[1754434420297,1e-08,163.82,163.81,6.84463341]
[1754434421622,1e-08,163.82,163.81,13.55693357]
[1754434428135,1e-08,163.82,163.81,16.00095057]
[1754434430619,1e-08,163.82,163.81,58.64095057]
[1754434431924,1e-08,163.82,163.81,80.24095057]
[1754434437649,1e-08,163.82,163.81,58.64095057]
[1754434438035,1e-08,163.82,163.81,16.00095057]
[1754434438265,1e-08,163.82,163.81,58.64095057]
[1754434439948,1e-08,163.82,163.81,57.96095057]
[1754434440341,1e-08,163.82,163.81,51.85631716]
[1754434440648,1e-08,163.82,163.81,57.96095057]
[1754434441881,1e-08,163.82,163.81,58.64095057]
[1754434450772,1e-08,163.82,163.81,56.22271973]
[1754434452336,1e-08,163.82,163.81,45.144017]
[1754434452560,0.40000001,163.82,163.81,42.7]
[1754434452765,0.40000001,163.82,163.81,0.06]
[1754434453156,1e-08,163.82,163.81,0.06]
[1754434454387,1e-08,163.82,163.81,0.78]
[1754434454683,1e-08,163.82,163.81,0.06]
[1754434456983,0.40000001,163.82,163.81,0.06]
[1754434459583,1e-08,163.82,163.81,0.06]
[1754434461779,1e-08,163.82,163.81,0.78]
[1754434462270,1e-08,163.82,163.81,0.06]
[1754434464173,1e-08,163.82,163.81,0.78]
[1754434467786,1e-08,163.82,163.81,7.4914899]
[1754434468288,1e-08,163.82,163.81,50.1114899]
[1754434469386,1e-08,163.82,163.81,43.4]
[1754434477484,1e-08,163.82,163.81,49.50463341]
[1754434479293,1e-08,163.82,163.81,53.79969524]
[1754434490427,1e-08,163.82,163.81,53.77969524]
[1754434493397,1e-08,163.82,163.81,56.22386124]
[1754434495205,1e-08,163.82,163.81,9.32879941]
[1754434495406,1e-08,163.82,163.81,51.92879941]
[1754434496328,1e-08,163.82,163.81,45.824166]
[1754434496707,1e-08,163.82,163.81,51.92879941]
[1754434497228,1e-08,163.82,163.81,56.22386124]
[1754434500341,1e-08,163.82,163.81,0.06]
[1754434500513,1e-08,163.82,163.81,49.46463341]
[1754434501334,1e-08,163.82,163.81,0.78]
[1754434501521,1e-08,163.82,163.81,42.64]
[1754434502037,1e-08,163.82,163.81,49.46463341]
[1754434502242,1e-08,163.82,163.81,53.75969524]
[1754434503009,1e-08,163.82,163.81,69.47637415]
[1754434503213,1e-08,163.82,163.81,68.86591081]
[1754434504732,1e-08,163.82,163.81,71.2784738]
[1754434504919,1e-08,163.82,163.81,73.7223418]
[1754434508611,1e-08,163.82,163.81,95.3223418]
[1754434513678,1e-08,163.82,163.81,79.49612623]
[1754434514762,1e-08,163.82,163.81,57.89612623]
[1754434515264,1e-08,163.82,163.81,58.54612623]
[1754434519660,1e-08,163.82,163.81,57.89612623]
[1754434520069,1e-08,163.82,163.81,58.54612623]
[1754434520244,1e-08,163.82,163.81,15.96612623]
[1754434520450,1e-08,163.82,163.81,45.083868]
[1754434520652,1e-08,163.82,163.81,42.64]
[1754434521351,1e-08,163.82,163.81,49.34762482]
[1754434521558,1e-08,163.82,163.81,56.10225823]
[1754434522648,1e-08,163.82,163.81,71.2084738]
[1754434524766,1e-08,163.82,163.81,71.96109871]
[1754434524961,1e-08,163.82,163.81,71.35063537]
[1754434527644,1e-08,163.82,163.81,73.79420437]
[1754434528365,0.1,163.84,163.81,73.79420437]
[1754434528366,0.1,163.84,163.83,15.10621557]
[1754434528539,0.1,163.84,163.83,64.37384039]
[1754434528737,0.1,163.84,163.83,65.02384039]
[1754434530147,0.1,163.84,163.83,71.12772856]
[1754434531373,0.1,163.84,163.83,83.93640556]
[1754434531674,0.1,163.84,163.83,68.83018999]
[1754434531885,0.1,163.84,163.83,68.18018999]
[1754434532386,0.1,163.84,163.83,89.78018999]
[1754434532581,0.1,163.84,163.83,90.43018999]
[1754434532774,0.1,163.84,163.83,88.01475403]
[1754434545484,0.1,163.84,163.83,23.85475403]
[1754434545786,0.1,163.84,163.83,66.41475403]
[1754434546901,0.1,163.84,163.83,66.47475403]
[1754434550811,0.5,163.84,163.83,0.06]
[1754434550985,0.5,163.84,163.83,42.6]
[1754434551508,0.1,163.84,163.83,42.6]
[1754434555994,0.5,163.84,163.83,42.6]
[1754434556911,4.79218886,163.84,163.83,42.6]
[1754434557110,4.39218886,163.84,163.83,42.6]
[1754434558413,0.5,163.84,163.83,42.6]
[1754434558614,10.89570448,163.84,163.83,0.06]
[1754434559418,4.79218886,163.84,163.83,0.06]
[1754434561489,0.5,163.84,163.83,0.06]
[1754434561687,4.79218886,163.84,163.83,0.06]
[1754434562203,10.89570448,163.84,163.83,0.06]
[1754434562789,4.79218886,163.84,163.83,0.06]
[1754434563916,10.89570448,163.84,163.83,0.06]
[1754434565618,4.79218886,163.84,163.83,0.06]
[1754434568918,10.89570448,163.84,163.83,0.06]
[1754434571022,10.49570448,163.84,163.83,0.06]
[1754434575727,10.89570448,163.84,163.83,0.06]
[1754434576431,10.49570448,163.84,163.83,0.06]
[1754434576628,0.1,163.84,163.83,0.06]
[1754434576825,4.39218886,163.84,163.83,0.75]
[1754434579124,0.1,163.84,163.83,0.75]
[1754434579441,0.1,163.84,163.83,43.29]
[1754434580011,0.1,163.84,163.83,49.39388817]
[1754434580406,0.1,163.84,163.83,53.68607703]
[1754434582844,0.1,163.84,163.83,65.25265412]
[1754434582845,1e-08,163.84,163.83,65.25265412]
[1754434583140,1e-08,163.84,163.83,68.93445417]
[1754434583942,1e-08,163.84,163.83,26.2522926]
[1754434584106,1e-08,163.84,163.83,64.50010374]
[1754434584307,1e-08,163.84,163.83,68.7922926]
[1754434586333,1e-08,163.84,163.83,53.68607703]
[1754434589057,1e-08,163.84,163.83,49.39388817]
[1754434589355,1e-08,163.84,163.83,53.68607703]
[1754434591469,1e-08,163.84,163.83,11.14607703]
[1754434591626,1e-08,163.84,163.83,49.37388817]
[1754434591831,1e-08,163.84,163.83,48.68388817]
[1754434592764,1e-08,163.84,163.83,42.58]
[1754434593785,1e-08,163.84,163.83,48.68388817]
[1754434593985,1e-08,163.84,163.83,42.58]
[1754434594494,1e-08,163.84,163.83,43.3]
[1754434594678,1e-08,163.84,163.83,42.58]
[1754434595653,1e-08,163.84,163.83,48.68388817]
[1754434595860,1e-08,163.84,163.83,53.69607703]
[1754434600179,1e-08,163.84,163.83,43.3]
[1754434601784,1e-08,163.84,163.83,49.40388817]
[1754434604393,1e-08,163.84,163.83,53.69607703]
[1754434608198,1e-08,163.84,163.83,49.40388817]
[1754434608398,1e-08,163.84,163.83,48.68388817]
[1754434608601,1e-08,163.84,163.83,49.40388817]
[1754434608997,1e-08,163.84,163.83,53.69607703]
[1754434610283,1e-08,163.84,163.83,11.17607703]
[1754434610485,1e-08,163.84,163.83,53.69607703]
[1754434611894,1e-08,163.84,163.83,72.02396303]
[1754434612909,1e-08,163.84,163.83,74.43947529]
[1754434616034,1e-08,163.84,163.83,24.49177417]
[1754434616336,1e-08,163.84,163.83,48.68388817]
[1754434620201,0.40000001,163.84,163.83,42.58]
[1754434620407,7.10770113,163.84,163.83,0.06]
[1754434621328,13.21121675,163.84,163.83,0.06]
[1754434624323,13.21121675,163.84,163.83,0.06]
[1754434629641,12.81121675,163.84,163.83,0.06]
[1754434630140,13.21121675,163.84,163.83,0.06]
[1754434630624,12.81121675,163.84,163.83,0.06]
[1754434632433,6.70770113,163.84,163.83,0.06]
[1754434632740,4.29606657,163.84,163.83,0.06]
[1754434633327,10.39958219,163.84,163.83,0.06]
[1754434635020,10.79958219,163.84,163.83,0.06]